bitfinex/quotes_SOLUSD_20260214
["timestamp","ask_amount","ask_price","bid_price","bid_amount"]
[1771073582132,0.95351563,86.499,86.453,0.91725455]
[1771073582727,0.95351563,86.499,86.46,8.55465747]
[1771073583226,0.95351563,86.497,86.46,8.55465747]
[1771073584727,0.95351563,86.497,86.46,9.47191202]
[1771073584925,0.95351563,86.497,86.461,0.91725455]
[1771073585319,0.95351563,86.495,86.461,0.91725455]
[1771073587639,0.95351563,86.489,86.441,0.91725455]
[1771073587819,0.95351563,86.489,86.452,0.91725455]
[1771073588126,40.46523457,86.494,86.431,49.18]
[1771073588127,0.95351563,86.479,86.434,0.91725455]
[1771073588530,0.95351563,86.479,86.44,8.55465747]
[1771073588742,0.95351563,86.469,86.43,9.47191202]
[1771073588910,0.95351563,86.469,86.431,0.91725455]
[1771073589107,0.95351563,86.469,86.44,8.55465747]
[1771073589335,0.95351563,86.469,86.43,0.91725455]
[1771073589633,56.68,86.489,86.428,128.70790106]
[1771073589634,0.95351563,86.467,86.428,128.70790106]
[1771073589809,0.95351563,86.467,86.428,129.62515561]
[1771073590015,56.68,86.489,86.428,129.62515561]
[1771073590016,0.95351563,86.487,86.451,0.91725455]
[1771073590415,0.95351563,86.487,86.45,8.55465747]
[1771073591430,0.95351563,86.487,86.45,9.47191202]
[1771073592538,0.95351563,86.485,86.45,0.91725455]
[1771073592738,0.95351563,86.485,86.45,9.47191202]
[1771073593646,0.95351563,86.485,86.46,8.55465747]
[1771073594140,0.95351563,86.485,86.451,0.91725455]
[1771073596056,0.95351563,86.485,86.44,49.3]
[1771073596057,56.7,86.493,86.461,0.91725455]
[1771073596219,0.95351563,86.491,86.461,0.91725455]
[1771073597247,8.55465747,86.51,86.452,11.56711238]
[1771073597248,0.95351563,86.504,86.48,8.55465747]
[1771073597443,0.95351563,86.504,86.471,0.91725455]
[1771073598118,11.5602927,86.503,86.471,0.91725455]
[1771073598418,0.95351563,86.502,86.471,0.91725455]
[1771073599241,0.95351563,86.502,86.472,0.91725455]
[1771073600738,0.95351563,86.5,86.472,0.91725455]
[1771073602037,0.95351563,86.5,86.461,0.91725455]
[1771073602243,0.95351563,86.499,86.46,3.42523461]
[1771073602846,0.95351563,86.497,86.461,0.91725455]
[1771073603026,0.95351563,86.497,86.471,0.91725455]
[1771073603934,11.56096094,86.498,86.471,0.91725455]
[1771073604450,0.95351563,86.497,86.471,0.91725455]
[1771073605043,11.56122826,86.496,86.471,0.91725455]
[1771073605531,0.95351563,86.495,86.453,0.91725455]
[1771073605731,0.95351563,86.489,86.46,3.42523461]
[1771073605938,0.95351563,86.489,86.461,0.91725455]
[1771073607450,0.95351563,86.497,86.463,0.91725455]
[1771073608655,0.95351563,86.497,86.465,0.91725455]
[1771073609553,0.95351563,86.495,86.466,12.48249406]
[1771073609948,0.95351563,86.495,86.47,3.42523461]
[1771073610460,0.95351563,86.503,86.471,0.91725455]
[1771073611367,3.42523461,86.49,86.454,11.56684479]
[1771073611534,1.03500757,86.489,86.457,1.08606729]
[1771073612046,1.03500757,86.504,86.471,1.08606729]
[1771073612236,1.03500757,86.499,86.461,1.08606729]
[1771073613151,1.03500757,86.497,86.463,1.08606729]
[1771073614453,1.03500757,86.497,86.469,1.08606729]
[1771073615660,11.56122826,86.496,86.471,1.08606729]
[1771073616262,1.03500757,86.495,86.465,11.56527388]
[1771073617451,1.03500757,86.495,86.464,1.08606729]
[1771073617653,1.03500757,86.493,86.465,11.56537327]
[1771073617961,1.03500757,86.493,86.46,4.5113019]
[1771073618156,1.03500757,86.493,86.461,1.08606729]
[1771073618457,1.03500757,86.509,86.471,1.08606729]
[1771073618659,1.03500757,86.509,86.46,3.42523461]
[1771073618962,1.03500757,86.509,86.461,1.08606729]
[1771073619755,1.03500757,86.507,86.463,1.08606729]
[1771073621762,40.4633633,86.498,86.457,11.56635239]
[1771073621961,1.04601643,86.497,86.457,12.59564687]
[1771073622263,1.04601643,86.497,86.46,3.42523461]
[1771073622464,1.04601643,86.497,86.46,4.45452909]
[1771073622666,11.56096094,86.498,86.461,1.02929448]
[1771073622864,11.56096094,86.498,86.457,40.48246097]
[1771073622865,11.56096094,86.498,86.471,1.02929448]
[1771073623047,12.60697737,86.498,86.471,1.02929448]
[1771073623257,1.04601643,86.497,86.471,1.02929448]
[1771073624549,1.04601643,86.507,86.472,1.02929448]
[1771073624771,28.89573529,86.518,86.481,1.02929448]
[1771073624772,1.04601643,86.514,86.481,1.02929448]
[1771073625158,1.04601643,86.532,86.501,1.02929448]
[1771073625547,1.04601643,86.532,86.51,3.42523461]
[1771073625868,1.04601643,86.559,86.52,3.42523461]
[1771073626046,1.04601643,86.559,86.494,48.98]
[1771073626047,1.04601643,86.558,86.53,3.42523461]
[1771073626650,1.04601643,86.558,86.521,1.02929448]
[1771073626651,1.04601643,86.556,86.521,1.02929448]
[1771073627467,1.04601643,86.556,86.386,25.76420881]
[1771073627468,1.04601643,86.575,86.55,3.42523461]
[1771073627771,1.04601643,86.574,86.55,3.42523461]
[1771073628639,1.04601643,86.585,86.56,3.42523461]
[1771073629242,1.04601643,86.585,86.551,11.55388152]
[1771073629450,1.04601643,86.585,86.55,4.45452909]
[1771073629660,1.04601643,86.585,86.56,3.42523461]
[1771073630146,1.04601643,86.585,86.56,4.45452909]
[1771073630355,1.04601643,86.585,86.561,1.02929448]
[1771073630755,12.59543901,86.585,86.561,1.02929448]
[1771073631761,1.04601643,86.585,86.57,8.54496339]
[1771073631969,11.54947796,86.584,86.561,1.02929448]
[1771073632556,1.04601643,86.583,86.551,1.02929448]
[1771073632754,1.04601643,86.583,86.56,8.54496339]
[1771073632957,1.04601643,86.599,86.57,8.54496339]
[1771073633171,1.04601643,86.598,86.56,8.54496339]
[1771073634265,1.04601643,86.598,86.57,8.54496339]
[1771073634663,1.04601643,86.598,86.56,8.54496339]
[1771073637079,1.04601643,86.596,86.57,8.54496339]
[1771073637471,1.04601643,86.596,86.56,1.02929448]
[1771073637472,1.04601643,86.596,86.56,9.57425787]
[1771073638077,1.04601643,86.596,86.55,8.54496339]
[1771073638281,1.04601643,86.596,86.56,8.54496339]
[1771073639077,1.04601643,86.594,86.56,8.54496339]
[1771073640690,8.54496339,86.59,86.533,1.02929448]
[1771073640977,1.04601643,86.567,86.525,1.02929448]
[1771073641184,1.04601643,86.567,86.53,8.54496339]
[1771073644087,1.10628078,86.565,86.53,8.54496339]
[1771073644556,1.10628078,86.559,86.515,11.55868924]
[1771073644756,1.10628078,86.559,86.53,8.54496339]
[1771073644980,1.10628078,86.565,86.53,8.54496339]
[1771073645465,1.10628078,86.565,86.531,1.13547545]
[1771073646388,11.55214638,86.564,86.531,1.13547545]
[1771073646569,1.10628078,86.563,86.531,1.13547545]
[1771073647595,28.87862061,86.57,86.54,8.54496339]
[1771073647596,1.10628078,86.561,86.54,8.54496339]
[1771073647881,1.10628078,86.561,86.533,1.13547545]
[1771073648190,1.10628078,86.561,86.53,8.54496339]
[1771073650184,1.10628078,86.557,86.515,1.13547545]
[1771073650391,1.10628078,86.549,86.511,48.68]
[1771073650570,1.10628078,86.539,86.501,1.13547545]
[1771073651290,1.10628078,86.539,86.462,11.56571287]
[1771073651466,190.62362806,86.558,86.448,28.91902358]
[1771073651467,1.10628078,86.499,86.463,1.13547545]
[1771073651666,1.10628078,86.499,86.463,12.70111624]
[1771073651967,1.10628078,86.499,86.464,1.13547545]
[1771073652168,1.10628078,86.497,86.464,1.13547545]
[1771073652587,1.10628078,86.497,86.456,1.13547545]
[1771073653487,1.10628078,86.489,86.45,3.42646308]
[1771073653679,1.10628078,86.489,86.448,49.89547545]
[1771073654490,1.10628078,86.487,86.449,1.13547545]
[1771073655394,1.10628078,86.487,86.451,1.13547545]
[1771073656666,11.56256503,86.486,86.451,1.13547545]
[1771073656869,1.10628078,86.485,86.451,1.13547545]
[1771073657491,1.10628078,86.479,86.451,1.13547545]
[1771073657695,11.56256503,86.486,86.451,1.13547545]
[1771073659596,1.10628078,86.485,86.451,1.13547545]
[1771073659770,12.66803834,86.493,86.453,1.13547545]
[1771073660495,1.10628078,86.492,86.453,1.13547545]
[1771073661078,1.10628078,86.492,86.451,127.52317104]
[1771073661079,11.56189661,86.491,86.455,1.13547545]
[1771073661695,11.56189661,86.491,86.456,1.13547545]
[1771073662099,11.56189661,86.491,86.461,1.13547545]
[1771073662598,11.56061668,86.501,86.471,1.13547545]
[1771073663175,11.55989179,86.506,86.473,1.13547545]
[1771073663379,12.66617257,86.506,86.473,1.13547545]
[1771073663595,11.55989179,86.506,86.473,1.13547545]
[1771073664098,11.55989179,86.506,86.481,1.13547545]
[1771073664394,11.55928033,86.511,86.481,1.13547545]
[1771073665400,1.10628078,86.527,86.491,1.13547545]
[1771073666910,1.10628078,86.519,86.48,1.13547545]
[1771073667416,11.55828844,86.518,86.48,1.13547545]
[1771073667613,1.10628078,86.517,86.48,1.13547545]
[1771073669210,1.10628078,86.489,86.422,1.13547545]
[1771073669411,3.42646308,86.5,86.421,11.57126161]
[1771073669412,1.10628078,86.459,86.426,1.13547545]
[1771073669706,4.61729252,86.485,86.425,0.04386181]
[1771073669707,1.10628078,86.449,86.425,0.04386181]
[1771073671485,11.5676476,86.448,86.425,0.04386181]
[1771073671687,1.09390539,86.447,86.425,0.04386181]
[1771073672920,1.09390539,86.445,86.425,0.04386181]
[1771073674618,11.56791523,86.446,86.425,1.155617]
[1771073675324,11.56724618,86.451,86.425,1.155617]
[1771073676526,11.56724618,86.451,86.431,1.11175519]
[1771073676714,11.56637101,86.458,86.431,1.11175519]
[1771073676917,11.56571976,86.463,86.431,1.11175519]
[1771073678223,1.09390539,86.463,86.431,1.11175519]
[1771073679826,11.56577455,86.462,86.431,1.11175519]
[1771073680828,11.56577455,86.462,86.433,1.12517297]
[1771073684110,11.56577455,86.462,86.435,1.12517297]
[1771073684310,11.56453311,86.472,86.441,1.12517297]
[1771073684707,11.56453311,86.472,86.431,1.12517297]
[1771073685211,11.56453311,86.472,86.432,1.12517297]
[1771073685416,11.56453311,86.472,86.441,1.12517297]
[1771073686726,1.16424506,86.471,86.441,1.12517297]
[1771073686913,12.72894958,86.47,86.441,1.12517297]
[1771073687114,1.16424506,86.469,86.441,1.12517297]
[1771073687714,1.16424506,86.459,86.425,1.16903478]
[1771073687934,40.47646582,86.47,86.43,8.57672567]
[1771073687935,1.16424506,86.466,86.43,8.57672567]
[1771073688122,1.16424506,86.466,86.438,1.12517297]
[1771073689020,1.16424506,86.464,86.438,1.12517297]
[1771073690817,11.56537327,86.465,86.441,1.12517297]
[1771073691035,11.56483826,86.469,86.441,1.12517297]
[1771073691335,12.72834422,86.475,86.443,1.12517297]
[1771073691525,1.16424506,86.474,86.443,1.12517297]
[1771073691721,1.16424506,86.484,86.451,1.12517297]
[1771073693344,1.16424506,86.482,86.451,1.12517297]
[1771073693513,1.16424506,86.482,86.453,1.12517297]
[1771073694540,11.56209851,86.49,86.453,1.12517297]
[1771073695120,11.56209851,86.49,86.461,1.12517297]
[1771073695442,11.56209851,86.49,86.463,1.12517297]
[1771073696045,11.56150513,86.494,86.463,1.12517297]
[1771073697223,1.16424506,86.499,86.463,1.12517297]
[1771073697742,1.16424506,86.489,86.447,1.12517297]
[1771073697917,1.16424506,86.489,86.451,1.12517297]
[1771073698933,1.16424506,86.489,86.461,1.12517297]
[1771073699455,1.16424506,86.487,86.461,1.12517297]
[1771073700946,1.16424506,86.487,86.451,1.12517297]
[1771073701646,1.19482171,86.479,86.444,1.17977261]
[1771073701942,1.19482171,86.479,86.438,11.56895457]
[1771073702163,3.42720799,86.47,86.438,11.56895457]
[1771073702351,1.19482171,86.469,86.438,11.56895457]
[1771073702654,1.19482171,86.469,86.437,1.17977261]
[1771073702841,1.19482171,86.469,86.428,1.17977261]
[1771073705836,1.19482171,86.467,86.428,1.17977261]
[1771073707052,1.19482171,86.459,86.428,1.17977261]
[1771073707439,1.19482171,86.459,86.43,1.17977261]
[1771073707748,1.19482171,86.466,86.431,1.17977261]
[1771073709031,1.19482171,86.481,86.441,1.17977261]
[1771073709337,57.80117928,86.504,86.432,11.56978896]
[1771073709338,11.56273476,86.485,86.461,1.17977261]
[1771073711539,11.56211157,86.49,86.47,4.6069806]
[1771073711736,3.42720799,86.52,86.481,1.17977261]
[1771073711943,1.19482171,86.522,86.481,1.17977261]
[1771073712140,1.19482171,86.519,86.481,1.17977261]
[1771073712650,56.64,86.523,86.463,48.74]
[1771073712651,1.19482171,86.509,86.465,1.17977261]
[1771073712851,1.19482171,86.499,86.465,1.17977261]
[1771073713050,1.19482171,86.489,86.441,1.17977261]
[1771073714649,1.19482171,86.487,86.443,1.17977261]
[1771073717680,28.90190526,86.5,86.461,1.17977261]
[1771073717956,1.19482171,86.499,86.461,1.17977261]
[1771073718160,1.19482171,86.499,86.471,1.17977261]
[1771073719365,11.56096094,86.498,86.471,1.17977261]
[1771073720267,11.56096094,86.498,86.473,1.17977261]
[1771073720857,11.55992601,86.506,86.473,1.17977261]
[1771073721249,1.19482171,86.512,86.465,28.91312921]
[1771073721250,1.19482171,86.51,86.481,1.17977261]
[1771073723968,1.19482171,86.508,86.481,1.17977261]
[1771073726663,11.55975816,86.507,86.481,1.17977261]
[1771073728370,11.55975816,86.507,86.483,1.17977261]
[1771073729956,1.19482171,86.517,86.485,1.17977261]
[1771073730671,1.19482171,86.517,86.478,1.17977261]
[1771073730858,1.19482171,86.515,86.48,3.42720799]
[1771073731253,1.19482171,86.515,86.491,1.12455802]
[1771073731454,11.55855564,86.516,86.491,1.12455802]
[1771073733051,1.1852778,86.55,86.511,1.12455802]
[1771073733257,1.1852778,86.549,86.511,1.12455802]
[1771073733567,1.1852778,86.539,86.501,1.12455802]
[1771073734676,1.1852778,86.539,86.51,3.42720799]
[1771073734968,0.72877097,86.606,86.531,1.12455802]
[1771073734969,1.1852778,86.56,86.531,1.12455802]
[1771073735271,11.55281368,86.559,86.533,1.12455802]
[1771073735463,1.1852778,86.558,86.533,1.12455802]
[1771073736169,1.1852778,86.564,86.533,1.12455802]
[1771073736371,1.1852778,86.564,86.526,1.12455802]
[1771073736569,1.1852778,86.564,86.53,3.42720799]
[1771073736767,1.1852778,86.559,86.526,1.12455802]
[1771073738583,1.1852778,86.567,86.531,1.12455802]
[1771073739465,3.42720799,86.57,86.531,1.12455802]
[1771073739466,1.1852778,86.562,86.531,1.12455802]
[1771073740164,3.42720799,86.56,86.531,1.12455802]
[1771073740364,1.23023147,86.559,86.521,1.22670184]
[1771073740662,1.23023147,86.557,86.522,1.22670184]
[1771073742782,1.23023147,86.555,86.524,1.22670184]
[1771073744685,28.87919919,86.568,86.526,1.22670184]
[1771073744860,1.33023147,86.58,86.551,1.22670184]
[1771073745065,1.23023147,86.578,86.551,1.22670184]
[1771073746566,1.23023147,86.576,86.551,1.22670184]
[1771073746976,1.23023147,86.576,86.541,1.22670184]
[1771073747184,1.23023147,86.569,86.541,1.22670184]
[1771073748385,1.23023147,86.567,86.541,12.78179872]
[1771073748573,1.23023147,86.567,86.542,1.22670184]
[1771073749492,11.55187949,86.566,86.542,1.22670184]
[1771073751082,1.23023147,86.573,86.544,1.22670184]
[1771073751587,11.5509387,86.574,86.544,1.22670184]
[1771073751588,1.23023147,86.571,86.544,1.22670184]
[1771073751998,1.23023147,86.571,86.545,1.22670184]
[1771073753007,1.23023147,86.571,86.546,1.22670184]
[1771073753304,1.23023147,86.577,86.546,1.22670184]
[1771073753604,11.55054518,86.576,86.546,1.22670184]
[1771073753787,1.23023147,86.575,86.546,1.22670184]
[1771073754504,1.23023147,86.569,86.538,1.22670184]
[1771073755983,1.23023147,86.567,86.538,1.22670184]
[1771073758103,1.23023147,86.567,86.539,11.55548365]
[1771073758312,1.23023147,86.566,86.54,1.22670184]
[1771073759607,3.41939213,86.56,86.526,1.22670184]
[1771073759906,1.23023147,86.559,86.526,1.22670184]
[1771073760286,1.23023147,86.549,86.523,48.2]
[1771073760489,1.23023147,86.549,86.518,1.22670184]
[1771073761484,1.23023147,86.549,86.507,11.55968943]
[1771073761684,1.23023147,86.549,86.503,48.2]
[1771073761899,40.43531504,86.558,86.501,1.12512789]
[1771073761900,1.15321499,86.529,86.501,1.12512789]
[1771073762402,1.15321499,86.538,86.503,1.12512789]
[1771073764285,1.15321499,86.529,86.503,1.12512789]
[1771073764910,11.55575071,86.537,86.505,1.12512789]
[1771073766813,11.55575071,86.537,86.507,1.12512789]
[1771073767192,12.7089657,86.537,86.507,1.12512789]
[1771073767388,1.15321499,86.536,86.507,1.12512789]
[1771073767615,1.15321499,86.529,86.501,1.12512789]
[1771073768707,1.15321499,86.527,86.493,1.12512789]
[1771073771414,11.55721979,86.526,86.495,1.12512789]
[1771073772809,11.556639,86.531,86.495,1.12512789]
[1771073773619,1.15321499,86.531,86.497,1.12512789]
[1771073774508,3.41939213,86.53,86.497,1.12512789]
[1771073774708,1.15321499,86.529,86.497,1.12512789]
[1771073776615,1.15321499,86.529,86.499,1.12512789]
[1771073777314,1.15321499,86.539,86.499,1.12512789]
[1771073777809,1.15321499,86.539,86.498,11.56096094]
[1771073777810,1.15321499,86.539,86.501,1.12512789]
[1771073778613,1.15321499,86.538,86.503,1.12512789]
[1771073779017,1.15321499,86.538,86.482,28.90773879]
[1771073779018,1.15321499,86.529,86.494,1.12512789]
[1771073779315,1.15321499,86.529,86.489,1.12512789]
[1771073779520,1.15321499,86.529,86.491,1.12512789]
[1771073780609,1.15321499,86.527,86.493,1.12512789]
[1771073781719,1.15321499,86.519,86.483,1.12512789]
[1771073781922,1.15321499,86.519,86.488,1.12512789]
[1771073783023,12.71016765,86.528,86.491,1.12512789]
[1771073783211,1.15321499,86.527,86.491,1.12512789]
[1771073784105,1.15321499,86.525,86.493,1.12512789]
[1771073786496,11.556889,86.529,86.495,1.12512789]
[1771073787013,1.15321499,86.528,86.495,1.12512789]
[1771073789017,11.55548365,86.539,86.501,1.12512789]
[1771073789318,1.15321499,86.547,86.501,1.12512789]
[1771073789522,1.15321499,86.547,86.511,1.12512789]
[1771073790107,1.15321499,86.546,86.511,1.12512789]
[1771073790506,1.15321499,86.539,86.511,1.12512789]
[1771073790713,1.15321499,86.539,86.496,40.46429892]
[1771073790714,1.15321499,86.539,86.497,1.12512789]
[1771073792309,1.15130293,86.537,86.501,1.17361087]
[1771073794008,1.15130293,86.529,86.502,11.56042634]
[1771073794218,1.15130293,86.529,86.503,1.17361087]
[1771073794415,1.15130293,86.529,86.489,1.17361087]
[1771073794613,1.15130293,86.529,86.491,1.17361087]
[1771073797732,1.15130293,86.557,86.501,1.17361087]
[1771073797937,1.15130293,86.549,86.501,1.17361087]
[1771073799110,11.55294715,86.558,86.521,1.17361087]
[1771073799329,1.15130293,86.557,86.521,1.17361087]
[1771073800833,1.19290653,86.555,86.521,1.17361087]
[1771073802135,1.19290653,86.549,86.522,1.19902692]
[1771073802449,3.41939213,86.53,86.506,1.19902692]
[1771073802615,40.43624936,86.556,86.45,3.41939213]
[1771073802616,1.19290653,86.519,86.471,1.19902692]
[1771073802817,1.19290653,86.517,86.473,1.19902692]
[1771073803011,1.19290653,86.509,86.473,1.19902692]
[1771073803427,1.19290653,86.499,86.473,1.19902692]
[1771073804830,11.56096094,86.498,86.473,1.19902692]
[1771073805143,1.19290653,86.499,86.474,1.19902692]
[1771073805534,11.56096094,86.498,86.474,1.19902692]
[1771073807252,11.55999796,86.506,86.476,1.19902692]
[1771073807456,1.19290653,86.505,86.476,1.19902692]
[1771073808048,1.19290653,86.505,86.475,11.56403584]
[1771073808049,1.19290653,86.515,86.481,1.19902692]
[1771073808829,12.75160848,86.515,86.481,1.19902692]
[1771073810552,11.55811037,86.52,86.483,1.19902692]
[1771073811030,1.19290653,86.523,86.491,1.19902692]
[1771073812540,1.19290653,86.523,86.493,1.19902692]
[1771073814448,11.55775409,86.522,86.493,1.19902692]
[1771073814651,1.19290653,86.521,86.495,1.19902692]
[1771073816251,1.19290653,86.529,86.495,1.19902692]
[1771073817555,1.19290653,86.529,86.496,12.76025518]
[1771073817754,1.19290653,86.527,86.497,1.19902692]
[1771073820360,1.19290653,86.509,86.45,48.34]
[1771073820653,1.19290653,86.509,86.461,1.19902692]
[1771073821457,1.19290653,86.509,86.46,3.42388337]
[1771073821643,1.19290653,86.509,86.461,1.15582117]
[1771073821847,1.12734161,86.507,86.471,1.15582117]
[1771073822641,1.12734161,86.499,86.463,1.15582117]
[1771073823670,1.12734161,86.497,86.465,1.15582117]
[1771073827275,11.56014386,86.505,86.471,1.15582117]
[1771073827454,12.68748547,86.505,86.471,1.15582117]
[1771073827652,1.12734161,86.504,86.471,1.15582117]
[1771073828073,1.12734161,86.511,86.481,1.15582117]
[1771073828273,11.55935729,86.51,86.481,1.15582117]
[1771073828684,1.12734161,86.528,86.491,1.15582117]
[1771073828866,1.12734161,86.528,86.501,1.15582117]
[1771073829661,11.55708622,86.527,86.501,1.15582117]
[1771073829857,1.12734161,86.526,86.501,1.15582117]
[1771073830282,1.12734161,86.526,86.503,1.15582117]
[1771073830785,11.55708622,86.527,86.503,1.15582117]
[1771073831458,1.12734161,86.54,86.511,1.15582117]
[1771073832085,1.12734161,86.54,86.504,11.56015906]
[1771073832086,1.12734161,86.559,86.521,1.15582117]
[1771073832262,1.12734161,86.559,86.531,1.15582117]
[1771073833567,1.12734161,86.556,86.522,1.15582117]
[1771073834383,1.12734161,86.577,86.55,3.42388337]
[1771073834588,1.12734161,86.577,86.551,1.15582117]
[1771073835684,1.12734161,86.575,86.542,1.15582117]
[1771073838085,1.12734161,86.575,86.544,1.15582117]
[1771073839365,1.12734161,86.575,86.545,12.7105037]
[1771073839991,1.12734161,86.575,86.546,1.15582117]
[1771073840893,1.12734161,86.579,86.551,1.15582117]
[1771073841303,1.12734161,86.578,86.552,11.55374803]
[1771073841477,1.12734161,86.578,86.541,1.15582117]
[1771073842495,11.55041177,86.577,86.541,1.15582117]
[1771073842792,1.12734161,86.576,86.541,1.15582117]
[1771073843473,1.12734161,86.576,86.542,11.55508308]
[1771073843678,1.12734161,86.574,86.543,1.15582117]
[1771073845599,1.12734161,86.574,86.551,1.15582117]
[1771073846404,1.12734161,86.569,86.533,1.15582117]
[1771073846584,1.12734161,86.569,86.541,1.15582117]
[1771073847201,1.12734161,86.577,86.541,1.15582117]
[1771073848096,1.12734161,86.575,86.543,1.15582117]
[1771073849884,1.12734161,86.575,86.551,1.15582117]
[1771073850383,1.12734161,86.573,86.551,1.15582117]
[1771073853384,1.12734161,86.573,86.552,11.55374803]
[1771073853709,11.55107887,86.572,86.553,1.198689]
[1771073854008,1.15670382,86.571,86.553,1.198689]
[1771073857003,1.15670382,86.569,86.547,1.198689]
[1771073860411,1.15670382,86.569,86.541,11.5552166]
[1771073860412,1.15670382,86.569,86.548,12.77234238]
[1771073861511,1.15670382,86.569,86.549,1.21806037]
[1771073861809,1.15539432,86.567,86.537,1.21806037]
[1771073863513,11.55187949,86.566,86.538,11.55561718]
[1771073863722,1.15539432,86.565,86.539,1.21806037]
[1771073864098,1.15539432,86.565,86.541,1.21806037]
[1771073864929,11.55109271,86.572,86.541,1.21806037]
[1771073865611,12.70648703,86.572,86.541,1.21806037]
[1771073865809,0.1,86.58,86.551,1.21806037]
[1771073866011,11.55014495,86.579,86.551,1.21806037]
[1771073866199,12.70553927,86.579,86.551,1.21806037]
[1771073866398,1.15539432,86.578,86.551,1.21806037]
[1771073868004,1.15539432,86.576,86.551,1.21806037]
[1771073870918,1.15539432,86.576,86.552,1.21806037]
[1771073871534,1.15539432,86.574,86.552,1.21806037]
[1771073877341,1.15539432,86.574,86.554,1.21806037]
[1771073878634,1.15539432,86.573,86.554,1.21806037]
[1771073880743,0.1,86.58,86.54,1.21806037]
[1771073880744,1.15539432,86.571,86.54,1.21806037]
[1771073881124,1.15539432,86.571,86.54,4.63712548]
[1771073881444,1.21324922,86.571,86.542,1.16001235]
[1771073881830,11.55134573,86.57,86.544,1.16001235]
[1771073882327,1.21324922,86.578,86.544,1.16001235]
[1771073882948,1.21324922,86.578,86.551,1.16001235]
[1771073883249,1.21324922,86.579,86.551,1.16001235]
[1771073883643,1.21324922,86.579,86.553,1.16001235]
[1771073884957,1.21324922,86.579,86.555,1.16001235]
[1771073886139,1.21324922,86.579,86.557,1.16001235]
[1771073888459,1.21324922,86.579,86.559,1.16001235]
[1771073888969,1.21324922,86.577,86.559,1.16001235]
[1771073889942,1.21324922,86.601,86.56,3.41906511]
[1771073890129,1.21324922,86.601,86.571,1.16001235]
[1771073890334,1.31324922,86.6,86.571,1.16001235]
[1771073891063,11.54761079,86.598,86.571,1.16001235]
[1771073891247,12.76086001,86.598,86.571,1.16001235]
[1771073891439,1.21324922,86.597,86.571,1.16001235]
[1771073892568,1.21324922,86.597,86.572,1.16001235]
[1771073893263,0.1,86.6,86.581,1.16001235]
[1771073893740,1.21324922,86.598,86.574,1.16001235]
[1771073895260,11.54774414,86.597,86.574,1.16001235]
[1771073895451,1.21324922,86.596,86.574,1.16001235]
[1771073897542,0.1,86.6,86.574,1.16001235]
[1771073897943,1.21324922,86.599,86.574,1.16001235]
[1771073898151,0.1,86.61,86.591,1.16001235]
[1771073899069,1.21324922,86.619,86.601,1.16001235]
[1771073900259,1.21324922,86.617,86.596,1.16001235]
[1771073901263,1.21324922,86.617,86.591,1.16001235]
[1771073901642,1.21324922,86.617,86.592,1.16001235]
[1771073901838,1.21324922,86.617,86.582,1.16001235]
[1771073902083,1.21324922,86.609,86.561,1.16001235]
[1771073902240,1.21324922,86.587,86.562,12.71242564]
[1771073902438,1.21324922,86.587,86.563,1.16001235]
[1771073902653,12.76165907,86.593,86.563,1.16001235]
[1771073903073,1.21324922,86.6,86.571,1.16001235]
[1771073903573,4.63231433,86.6,86.571,1.16001235]
[1771073903758,3.41906511,86.59,86.561,1.16001235]
[1771073903970,1.21324922,86.589,86.555,1.16001235]
[1771073904150,1.21324922,86.587,86.557,1.16001235]
[1771073905965,1.21324922,86.587,86.55,11.55397795]
[1771073906143,1.21324922,86.587,86.543,28.88719908]
[1771073906349,1.21324922,86.585,86.55,1.16001235]
[1771073907457,1.21324922,86.585,86.551,1.16001235]
[1771073908960,1.21324922,86.583,86.553,1.16001235]
[1771073909271,1.21324922,86.589,86.553,1.16001235]
[1771073909671,1.21324922,86.589,86.56,3.41906511]
[1771073909859,1.21324922,86.589,86.561,1.16001235]
[1771073910475,12.76206026,86.589,86.561,1.16001235]
[1771073910674,1.21324922,86.588,86.561,1.16001235]
[1771073911675,11.54879776,86.59,86.561,1.16001235]
[1771073912273,1.22006513,86.59,86.561,1.16001235]
[1771073912475,1.22006513,86.59,86.53,11.63120032]
[1771073912476,1.22006513,86.589,86.555,1.16639827]
[1771073912973,28.86802692,86.601,86.546,11.55445968]
[1771073912974,1.22006513,86.579,86.547,1.16639827]
[1771073914858,1.22006513,86.577,86.549,1.16639827]
[1771073916279,1.22006513,86.577,86.551,1.16639827]
[1771073916865,1.22006513,86.577,86.553,1.16639827]
[1771073917573,1.22006513,86.569,86.542,1.16639827]
[1771073919059,1.22006513,86.569,86.544,1.16639827]
[1771073921282,1.23449001,86.567,86.529,1.24398803]
[1771073921665,1.23449001,86.559,86.529,1.24398803]
[1771073921859,1.23449001,86.559,86.511,48.68]
[1771073921860,1.23449001,86.559,86.522,1.24398803]
[1771073923487,11.55294715,86.558,86.522,1.24398803]
[1771073923675,1.23449001,86.557,86.522,11.55771506]
[1771073923882,1.23449001,86.557,86.523,1.24398803]
[1771073925675,1.23449001,86.555,86.523,1.24398803]
[1771073925973,1.23449001,86.549,86.523,1.24398803]
[1771073927692,1.23449001,86.547,86.523,1.24398803]
[1771073928192,1.23449001,86.547,86.524,1.24398803]
[1771073928884,1.23449001,86.547,86.523,11.55758023]